[Event "FIDE World Senior-50 CC 2023"]
[Site "Terrasini"]
[Date "2023.10.25"]
[Round "1.17"]
[White "Santanna, Paulo"]
[Black "Mrva, Martin"]
[Result "0-1"]
[ECO "B07"]
[WhiteElo "2012"]
[BlackElo "2366"]
[Annotator "RC"]
[PlyCount "86"]
[EventDate "2023.10.22"]
[EventType "swiss"]
[EventCountry "ITA"]
[SourceTitle "playchess.com"]
[Source "ChessBase"]
[SourceQuality "1"]
[TimeControl "40/5400+30:1800+30"]

1. d4 {[%emt 0:00:05]} Nf6 {[%emt 0:00:08]} 2. Nc3 {[%emt 0:00:07]} d6 {[%emt 0:04:02]} 3. e4 {[%emt 0:00:15]} a6 {[%emt 0:01:55]} 4. f4 {[%emt 0:03:13]} e5 {[%emt 0:04:14]} 5. dxe5 {[%emt 0:02:05]} dxe5 {[%emt 0:00:08]} 6. Qxd8+ {[%emt 0:00:17]} Kxd8 {[%emt 0:00:02]} 7. fxe5 {[%emt 0:00:55]} Ng4 {[%emt 0:01:13]} 8. Nf3 {[%emt 0:08:06]} Nc6 {[%emt 0:02:01]} 9. Bg5+ {[%emt 0:02:28]} Be7 {[%emt 0:00:51]} 10. Bxe7+ {[%emt 0:03:21]} Kxe7 {[%emt 0:00:47]} 11. Nd5+ {[%emt 0:00:35]} Kd8 {[%emt 0:00:13]} 12. Rd1 {[%emt 0:07:57]} Bd7 {[%emt 0:01:14]} 13. e6 {[%emt 0:02:38]} fxe6 {[%emt 0:00:43]} 14. Nf4 {[%emt 0:01:45]} Ke7 {[%emt 0:02:08]} 15. Nd3 {[%emt 0:06:34]} Be8 {[%emt 0:07:06]} 16. h3 {[%emt 0:01:28]} Nf6 {[%emt 0:06:51]} 17. Nc5 {[%emt 0:04:58]} b6 {[%emt 0:06:57]} 18. e5 {[%emt 0:03:59]} bxc5 {[%emt 0:16:40]} 19. exf6+ {[%emt 0:00:08]} gxf6 {[%emt 0:00:09]} 20. Be2 {[%emt 0:07:51]} Rb8 {[%emt 0:00:51]} 21. Rb1 {[%emt 0:03:00]} Bg6 {[%emt 0:01:42]} 22. b3 {[%emt 0:08:14]} Nb4 {[%emt 0:01:31]} 23. O-O {[%emt 0:00:23]} Rhd8 {[%emt 0:02:32]} 24. Rb2 {[%emt 0:02:20]} Rd6 {[%emt 0:01:26]} 25. c3 {[%emt 0:05:26]} Nd5 {[%emt 0:01:30]} 26. Rc1 {[%emt 0:00:59]} Nf4 {[%emt 0:00:35]} 27. Bf1 {[%emt 0:02:10]} c4 {[%emt 0:02:42]} 28. Bxc4 {[%emt 0:06:44]} Bd3 {[%emt 0:00:19]} 29. g3 {[%emt 0:05:38]} Nxh3+ {[%emt 0:01:21]} 30. Kh2 {[%emt 0:00:54]} Bxc4 {[%emt 0:00:15]} 31. Kxh3 {[%emt 0:00:08]} Bd5 {[%emt 0:33:54]} 32. Rf1 {[%emt 0:02:34]} a5 {[%emt 0:00:00]} 33. c4 {[%emt 0:03:08]} Bxc4 {[%emt 0:00:00]} 34. Rc1 {[%emt 0:00:09]} Bd5 {[%emt 0:00:00]} 35. Nd4 {[%emt 0:01:04]} Rb4 {[%emt 0:00:00]} 36. Ne2 {[%emt 0:01:25]} c6 {[%emt 0:00:00]} 37. Nc3 {[%emt 0:00:40]} Bf3 {[%emt 0:00:00]} 38. Rf2 {[%emt 0:00:49]} Rd3 {[%emt 0:00:00]} 39. Na4 {[%emt 0:00:21]} Re3 {[%emt 0:00:00]} 40. Rcf1 {[%emt 0:04:00]} Bg4+ {[%emt 0:00:00]} 41. Kg2 {[%emt 0:30:26]} Bf5 {[%emt 0:21:55]} 42. Rc1 {[%emt 0:01:29]} Rg4 {[%emt 0:00:24]} 43. Kh2 {[%emt 0:00:00]} Rgxg3 {[%emt 0:00:00]} 0-1

[Event "FIDE World Senior-50 CC 2023"]
[Site "Terrasini"]
[Date "2023.10.25"]
[Round "1.18"]
[White "Vinter-Schou, Uffe"]
[Black "Quijada Carvajal, Leonardo Gustavo"]
[Result "1/2-1/2"]
[ECO "A32"]
[WhiteElo "2345"]
[BlackElo "2005"]
[Annotator "RC"]
[PlyCount "123"]
[EventDate "2023.10.22"]
[EventType "swiss"]
[EventCountry "ITA"]
[SourceTitle "playchess.com"]
[Source "ChessBase"]
[SourceQuality "1"]
[TimeControl "40/5400+30:1800+30"]

1. c4 {[%emt 0:00:05]} Nf6 {[%emt 0:00:23]} 2. Nf3 {[%emt 0:00:10]} e6 {[%emt 0:00:34]} 3. Nc3 {[%emt 0:02:33]} c5 {[%emt 0:02:32]} 4. d4 {[%emt 0:01:01]} cxd4 {[%emt 0:01:01]} 5. Nxd4 {[%emt 0:00:03]} d5 {[%emt 0:10:02]} 6. Bf4 {[%emt 0:07:13]} Bd6 {[%emt 0:05:55]} 7. Bxd6 {[%emt 0:09:17]} Qxd6 {[%emt 0:00:06]} 8. Ndb5 {[%emt 0:00:09]} Qe7 {[%emt 0:00:12]} 9. cxd5 {[%emt 0:01:47]} exd5 {[%emt 0:00:38]} 10. e3 {[%emt 0:01:37]} Be6 {[%emt 0:00:51]} 11. Be2 {[%emt 0:00:26]} O-O {[%emt 0:00:27]} 12. O-O {[%emt 0:00:17]} Nc6 {[%emt 0:00:14]} 13. Qa4 {[%emt 0:05:24]} Rfd8 {[%emt 0:04:10]} 14. Rfd1 {[%emt 0:01:10]} a6 {[%emt 0:04:35]} 15. Nd4 {[%emt 0:00:15]} Ne5 {[%emt 0:00:06]} 16. Nxe6 {[%emt 0:34:07]} fxe6 {[%emt 0:11:56]} 17. Rac1 {[%emt 0:00:15]} Rac8 {[%emt 0:00:42]} 18. Qb3 {[%emt 0:05:02]} Kh8 {[%emt 0:06:24]} 19. a3 {[%emt 0:04:50]} Rc7 {[%emt 0:05:07]} 20. Rc2 {[%emt 0:08:11]} Rdc8 {[%emt 0:01:09]} 21. Rcd2 {[%emt 0:00:11]} b5 {[%emt 0:08:42]} 22. Rd4 {[%emt 0:04:16]} Nc6 {[%emt 0:05:21]} 23. R4d2 {[%emt 0:00:08]} Ne5 {[%emt 0:02:35]} 24. Bd3 {[%emt 0:01:22]} Nc4 {[%emt 0:01:26]} 25. Bxc4 {[%emt 0:00:08]} Rxc4 {[%emt 0:00:26]} 26. h3 {[%emt 0:01:41]} h6 {[%emt 0:03:30]} 27. Rd4 {[%emt 0:00:11]} Qc5 {[%emt 0:01:43]} 28. Rxc4 {[%emt 0:04:44]} bxc4 {[%emt 0:02:03]} 29. Qb7 {[%emt 0:01:38]} Qc6 {[%emt 0:02:30]} 30. Qxc6 {[%emt 0:03:54]} Rxc6 {[%emt 0:00:06]} 31. f3 {[%emt 0:00:50]} Rb6 {[%emt 0:02:32]} 32. Rd2 {[%emt 0:00:02]} Kg8 {[%emt 0:01:25]} 33. e4 {[%emt 0:00:21]} Kf7 {[%emt 0:01:06]} 34. Kf2 {[%emt 0:00:25]} Ke7 {[%emt 0:02:08]} 35. Ke3 {[%emt 0:00:23]} dxe4 {[%emt 0:02:44]} 36. fxe4 {[%emt 0:00:50]} Nd7 {[%emt 0:02:50]} 37. Na4 {[%emt 0:01:12]} Rc6 {[%emt 0:00:47]} 38. Rd4 {[%emt 0:01:59]} Ne5 {[%emt 0:00:23]} 39. Kd2 {[%emt 0:00:19]} c3+ {[%emt 0:02:36]} 40. Nxc3 {[%emt 0:01:26]} Nc4+ {[%emt 0:00:08]} 41. Kc2 {[%emt 0:13:51]} Ne3+ {[%emt 0:00:54]} 42. Kd3 {[%emt 0:00:08]} Nxg2 {[%emt 0:00:09]} 43. e5 {[%emt 0:00:09]} g5 {[%emt 0:00:22]} 44. Ke4 {[%emt 0:00:32]} Nf4 {[%emt 0:10:05]} 45. h4 {[%emt 0:00:33]} Ng6 {[%emt 0:00:04]} 46. hxg5 {[%emt 0:06:25]} hxg5 {[%emt 0:00:05]} 47. Rb4 {[%emt 0:00:06]} Rc5 {[%emt 0:01:47]} 48. Rb7+ {[%emt 0:00:08]} Kf8 {[%emt 0:00:27]} 49. Ra7 {[%emt 0:00:22]} Rxe5+ {[%emt 0:03:09]} 50. Kf3 {[%emt 0:00:08]} a5 {[%emt 0:00:37]} 51. b4 {[%emt 0:00:22]} axb4 {[%emt 0:00:57]} 52. axb4 {[%emt 0:00:01]} Ne7 {[%emt 0:04:32]} 53. b5 {[%emt 0:04:51]} Rc5 {[%emt 0:03:23]} 54. Ra3 {[%emt 0:00:07]} Nc8 {[%emt 0:01:23]} 55. Ne4 {[%emt 0:02:24]} Rf5+ {[%emt 0:01:27]} 56. Kg4 {[%emt 0:02:18]} Rf4+ {[%emt 0:00:56]} 57. Kxg5 {[%emt 0:00:02]} Rxe4 {[%emt 0:00:29]} 58. Ra8 {[%emt 0:00:07]} Ke7 {[%emt 0:00:44]} 59. Rxc8 {[%emt 0:00:07]} Re5+ {[%emt 0:00:06]} 60. Kf4 {[%emt 0:00:22]} Rxb5 {[%emt 0:00:06]} 61. Ke4 {[%emt 0:00:37]} Kd7 {[%emt 0:00:45]} 62. Rc5 {[%emt 0:00:10]} 1/2-1/2

[Event "FIDE World Senior-50 CC 2023"]
[Site "Terrasini"]
[Date "2023.10.25"]
[Round "1.19"]
[White "Mitrandzas, Athanasios"]
[Black "Paschall, William"]
[Result "0-1"]
[ECO "A10"]
[WhiteElo "1988"]
[BlackElo "2329"]
[Annotator "ChessBase"]
[PlyCount "106"]
[EventDate "2023.10.22"]
[EventType "swiss"]
[EventCountry "ITA"]
[SourceTitle "playchess.com"]
[Source "ChessBase"]
[SourceQuality "1"]
[TimeControl "40/5400+30:1800+30"]

1. c4 {[%emt 0:00:08]} b6 {[%emt 0:01:36]} 2. Nc3 {[%emt 0:00:21]} Bb7 {[%emt 0:00:52]} 3. e4 {[%emt 0:00:16]} e5 {[%emt 0:01:19]} 4. Nf3 {[%emt 0:02:13]} Nc6 {[%emt 0:02:12]} 5. a3 {[%emt 0:00:45]} g6 {[%emt 0:07:05]} 6. g3 {[%emt 0:13:59]} Bg7 {[%emt 0:03:03]} 7. Bg2 {[%emt 0:00:09]} d6 {[%emt 0:05:46]} 8. d3 {[%emt 0:00:27]} Nf6 {[%emt 0:03:43]} 9. O-O {[%emt 0:00:57]} O-O {[%emt 0:03:39]} 10. Rb1 {[%emt 0:09:20]} Nd7 {[%emt 0:07:15]} 11. Bg5 {[%emt 0:10:12]} Bf6 {[%emt 0:06:57]} 12. Bh6 {[%emt 0:00:36]} Re8 {[%emt 0:02:15]} 13. Nd5 {[%emt 0:01:53]} Bg7 {[%emt 0:00:52]} 14. Bg5 {[%emt 0:01:03]} f6 {[%emt 0:00:55]} 15. Be3 {[%emt 0:00:59]} Ne7 {[%emt 0:07:11]} 16. d4 {[%emt 0:04:09]} c5 {[%emt 0:04:50]} 17. Nxe7+ {[%emt 0:03:51]} Qxe7 {[%emt 0:00:30]} 18. d5 {[%emt 0:00:08]} Bc8 {[%emt 0:11:37]} 19. Qd2 {[%emt 0:13:28]} Nf8 {[%emt 0:06:15]} 20. Rbd1 {[%emt 0:13:16]} Bd7 {[%emt 0:06:27]} 21. b4 {[%emt 0:00:44]} Qd8 {[%emt 0:04:25]} 22. Nh4 {[%emt 0:01:40]} Rc8 {[%emt 0:02:49]} 23. bxc5 {[%emt 0:05:16]} bxc5 {[%emt 0:00:18]} 24. Rb1 {[%emt 0:00:08]} Rb8 {[%emt 0:01:44]} 25. Qc3 {[%emt 0:02:50]} Rb6 {[%emt 0:01:16]} 26. Qc2 {[%emt 0:01:32]} Qe7 {[%emt 0:00:36]} 27. Rxb6 {[%emt 0:00:53]} axb6 {[%emt 0:00:05]} 28. Rb1 {[%emt 0:00:09]} Rb8 {[%emt 0:01:01]} 29. Qb3 {[%emt 0:04:30]} Qe8 {[%emt 0:02:25]} 30. Bf1 {[%emt 0:00:08]} Ba4 {[%emt 0:01:25]} 31. Qd3 {[%emt 0:03:20]} Bd7 {[%emt 0:00:21]} 32. Bd2 {[%emt 0:01:04]} Qd8 {[%emt 0:00:47]} 33. Qb3 {[%emt 0:00:18]} Qe8 {[%emt 0:00:31]} 34. Ba5 {[%emt 0:00:34]} Ba4 {[%emt 0:00:24]} 35. Qb2 {[%emt 0:00:07]} Bh6 {[%emt 0:01:26]} 36. Bc3 {[%emt 0:01:15]} Bd7 {[%emt 0:00:42]} 37. Ba5 {[%emt 0:04:21]} Ba4 {[%emt 0:00:56]} 38. Bc3 {[%emt 0:00:10]} Qc8 {[%emt 0:00:54]} 39. Be2 {[%emt 0:00:38]} Be8 {[%emt 0:01:00]} 40. Qc2 {[%emt 0:00:24]} Qa6 {[%emt 0:00:39]} 41. Qb2 {[%emt 0:31:32]} Ba4 {[%emt 0:31:21]} 42. Ng2 {[%emt 0:00:00]} Qc8 {[%emt 0:00:00]} 43. f4 {[%emt 0:00:00]} Bd7 {[%emt 0:00:00]} 44. Bd3 {[%emt 0:00:00]} Bh3 {[%emt 0:00:00]} 45. fxe5 {[%emt 0:00:00]} fxe5 {[%emt 0:00:00]} 46. Be2 {[%emt 0:00:00]} Nd7 {[%emt 0:00:00]} 47. Qb5 {[%emt 0:00:00]} Nf6 {[%emt 0:00:00]} 48. Qc6 {[%emt 0:00:00]} Qd8 {[%emt 0:00:00]} 49. Qa4 {[%emt 0:00:00]} Nxe4 {[%emt 0:00:00]} 50. Be1 {[%emt 0:00:00]} Qf6 {[%emt 0:00:00]} 51. Qc2 {[%emt 0:02:02]} Rf8 {[%emt 0:00:00]} 52. Bd3 {[%emt 0:02:29]} Nd2 {[%emt 0:00:00]} 53. Rd1 {[%emt 0:01:52]} Qf1+ {[%emt 0:00:00]} 0-1

[Event "FIDE World Senior-50 CC 2023"]
[Site "Terrasini"]
[Date "2023.10.26"]
[Round "2.1"]
[White "Adams, Michael"]
[Black "Dieu, Bruno"]
[Result "1-0"]
[ECO "C17"]
[WhiteElo "2670"]
[BlackElo "2221"]
[Annotator "RC"]
[PlyCount "81"]
[EventDate "2023.10.22"]
[EventType "swiss"]
[EventCountry "ITA"]
[SourceTitle "playchess.com"]
[Source "ChessBase"]
[SourceQuality "1"]
[TimeControl "40/5400+30:1800+30"]

1. e4 {[%emt 0:00:03]} e6 {[%emt 0:00:22]} 2. d4 {[%emt 0:00:08]} d5 {[%emt 0:00:04]} 3. Nc3 {[%emt 0:00:05]} Bb4 {[%emt 0:00:57]} 4. e5 {[%emt 0:00:08]} c5 {[%emt 0:01:22]} 5. Bd2 {[%emt 0:00:10]} Ne7 {[%emt 0:01:49]} 6. a3 {[%emt 0:00:14]} Bxc3 {[%emt 0:01:43]} 7. Bxc3 {[%emt 0:00:07]} b6 {[%emt 0:03:32]} 8. h4 {[%emt 0:01:04]} Ba6 {[%emt 0:01:57]} 9. Bxa6 {[%emt 0:01:20]} Nxa6 {[%emt 0:00:05]} 10. h5 {[%emt 0:01:22]} h6 {[%emt 0:03:05]} 11. Qe2 {[%emt 0:03:02]} Nb8 {[%emt 0:01:29]} 12. f4 {[%emt 0:08:37]} Nbc6 {[%emt 0:09:57]} 13. Nf3 {[%emt 0:01:56]} Qd7 {[%emt 0:03:14]} 14. Rh3 {[%emt 0:10:42]} Rc8 {[%emt 0:06:51]} 15. g4 {[%emt 0:08:40]} cxd4 {[%emt 0:05:04]} 16. Bxd4 {[%emt 0:07:14]} Nxd4 {[%emt 0:12:09]} 17. Nxd4 {[%emt 0:00:05]} Qa4 {[%emt 0:01:39]} 18. O-O-O {[%emt 0:02:46]} Rc4 {[%emt 0:07:46]} 19. Qd2 {[%emt 0:07:48]} O-O {[%emt 0:05:17]} 20. Kb1 {[%emt 0:44:59]} Rfc8 {[%emt 0:05:02]} 21. Rd3 {[%emt 0:00:00]} Qa6 {[%emt 0:04:11]} 22. f5 {[%emt 0:00:00]} Nc6 {[%emt 0:04:31]} 23. fxe6 {[%emt 0:00:00]} Nxe5 {[%emt 0:00:28]} 24. exf7+ {[%emt 0:00:00]} Nxf7 {[%emt 0:00:55]} 25. Re3 {[%emt 0:00:00]} Qb7 {[%emt 0:05:12]} 26. Qe2 {[%emt 0:00:00]} Ng5 {[%emt 0:06:06]} 27. Re7 {[%emt 0:00:00]} R4c7 {[%emt 0:01:49]} 28. Re8+ {[%emt 0:00:00]} Kh7 {[%emt 0:01:34]} 29. Qe5 {[%emt 0:00:00]} Rxe8 {[%emt 0:00:48]} 30. Qxe8 {[%emt 0:00:00]} Rf7 {[%emt 0:00:25]} 31. Nf5 {[%emt 0:00:00]} Ne4 {[%emt 0:02:32]} 32. Qe5 {[%emt 0:00:00]} Rd7 {[%emt 0:00:33]} 33. Ne3 {[%emt 0:00:46]} Nf6 {[%emt 0:00:16]} 34. g5 {[%emt 0:00:29]} hxg5 {[%emt 0:00:20]} 35. Qf5+ {[%emt 0:01:16]} Kg8 {[%emt 0:00:35]} 36. Qxg5 {[%emt 0:00:21]} d4 {[%emt 0:02:26]} 37. Nf5 {[%emt 0:01:01]} Qf3 {[%emt 0:01:03]} 38. Rxd4 {[%emt 0:00:41]} Nh7 {[%emt 0:01:31]} 39. Ne7+ {[%emt 0:03:06]} Kh8 {[%emt 0:00:22]} 40. Ng6+ {[%emt 0:00:18]} Kg8 {[%emt 0:00:00]} 41. Rxd7 {[%emt 0:31:56]} 1-0

[Event "FIDE World Senior-50 CC 2023"]
[Site "Terrasini"]
[Date "2023.10.26"]
[Round "2.2"]
[White "Dlugy, Maxim"]
[Black "Milat, Marcel"]
[Result "1/2-1/2"]
[ECO "D00"]
[WhiteElo "2520"]
[BlackElo "2207"]
[Annotator "RC"]
[PlyCount "42"]
[EventDate "2023.10.22"]
[EventType "swiss"]
[EventCountry "ITA"]
[SourceTitle "playchess.com"]
[Source "ChessBase"]
[SourceQuality "1"]
[TimeControl "40/5400+30:1800+30"]

1. d4 {[%emt 0:00:30]} Nf6 {[%emt 0:01:09]} 2. Bf4 {[%emt 0:00:00]} d5 {[%emt 0:01:58]} 3. e3 {[%emt 0:00:00]} c5 {[%emt 0:03:00]} 4. dxc5 {[%emt 0:00:53]} g6 {[%emt 0:00:40]} 5. Nc3 {[%emt 0:05:55]} Bg7 {[%emt 0:01:39]} 6. Nb5 {[%emt 0:08:20]} O-O {[%emt 0:02:24]} 7. c3 {[%emt 0:07:24]} Ne4 {[%emt 0:09:18]} 8. Nf3 {[%emt 0:10:14]} Nc6 {[%emt 0:03:55]} 9. Nbd4 {[%emt 0:03:22]} Nxc5 {[%emt 0:02:26]} 10. Be2 {[%emt 0:01:51]} Qb6 {[%emt 0:21:55]} 11. Nb3 {[%emt 0:10:17]} e5 {[%emt 0:08:48]} 12. Bg3 {[%emt 0:01:17]} d4 {[%emt 0:00:13]} 13. Nxc5 {[%emt 0:02:37]} Qxc5 {[%emt 0:01:05]} 14. cxd4 {[%emt 0:05:15]} Qb4+ {[%emt 0:06:20]} 15. Qd2 {[%emt 0:04:12]} exd4 {[%emt 0:00:09]} 16. Qxb4 {[%emt 0:04:04]} Nxb4 {[%emt 0:00:06]} 17. Bd6 {[%emt 0:00:02]} Nc2+ {[%emt 0:00:45]} 18. Kd2 {[%emt 0:00:15]} Nxa1 {[%emt 0:00:20]} 19. Bxf8 {[%emt 0:00:03]} dxe3+ {[%emt 0:00:17]} 20. fxe3 {[%emt 0:00:02]} Kxf8 {[%emt 0:01:50]} 21. Nd4 {[%emt 0:00:09]} Bd7 {[%emt 0:17:24]} 1/2-1/2

[Event "FIDE World Senior-50 CC 2023"]
[Site "Terrasini"]
[Date "2023.10.26"]
[Round "2.3"]
[White "Prasad, Devaki V"]
[Black "Sturua, Zurab"]
[Result "1/2-1/2"]
[ECO "C54"]
[WhiteElo "2200"]
[BlackElo "2514"]
[Annotator "RC"]
[PlyCount "69"]
[EventDate "2023.10.22"]
[EventType "swiss"]
[EventCountry "ITA"]
[SourceTitle "playchess.com"]
[Source "ChessBase"]
[SourceQuality "1"]
[TimeControl "40/5400+30:1800+30"]

1. e4 {[%emt 0:00:07]} e5 {[%emt 0:00:19]} 2. Nf3 {[%emt 0:00:14]} Nc6 {[%emt 0:00:16]} 3. Bc4 {[%emt 0:00:15]} Bc5 {[%emt 0:00:46]} 4. c3 {[%emt 0:00:22]} Nf6 {[%emt 0:00:14]} 5. d3 {[%emt 0:00:19]} d6 {[%emt 0:01:32]} 6. O-O {[%emt 0:00:38]} a6 {[%emt 0:02:57]} 7. a4 {[%emt 0:00:17]} O-O {[%emt 0:01:32]} 8. h3 {[%emt 0:00:27]} Ba7 {[%emt 0:04:49]} 9. Re1 {[%emt 0:00:35]} Be6 {[%emt 0:03:03]} 10. Bxe6 {[%emt 0:09:45]} fxe6 {[%emt 0:00:10]} 11. Nbd2 {[%emt 0:00:04]} Nh5 {[%emt 0:15:11]} 12. Nf1 {[%emt 0:00:49]} Qe8 {[%emt 0:01:47]} 13. Be3 {[%emt 0:04:24]} Nf4 {[%emt 0:02:49]} 14. Bxa7 {[%emt 0:02:41]} Rxa7 {[%emt 0:04:02]} 15. Re3 {[%emt 0:00:35]} Qg6 {[%emt 0:03:51]} 16. Ng3 {[%emt 0:00:54]} Raa8 {[%emt 0:04:15]} 17. d4 {[%emt 0:19:55]} a5 {[%emt 0:05:13]} 18. Qf1 {[%emt 0:23:45]} exd4 {[%emt 0:11:51]} 19. cxd4 {[%emt 0:00:13]} Nb4 {[%emt 0:35:23]} 20. Rc1 {[%emt 0:00:14]} Rf7 {[%emt 0:00:00]} 21. Qb5 {[%emt 0:02:36]} b6 {[%emt 0:00:00]} 22. Qg5 {[%emt 0:03:48]} Raf8 {[%emt 0:00:00]} 23. Qxg6 {[%emt 0:00:13]} Nxg6 {[%emt 0:00:00]} 24. Ng5 {[%emt 0:08:54]} Re7 {[%emt 0:00:00]} 25. Ne2 {[%emt 0:00:29]} h6 {[%emt 0:00:00]} 26. Nf3 {[%emt 0:00:06]} Rd7 {[%emt 0:00:00]} 27. g3 {[%emt 0:03:24]} c5 {[%emt 0:00:00]} 28. Nd2 {[%emt 0:06:07]} Rdf7 {[%emt 0:00:00]} 29. f4 {[%emt 0:00:45]} cxd4 {[%emt 0:00:00]} 30. Nxd4 {[%emt 0:00:03]} e5 {[%emt 0:00:00]} 31. Ne6 {[%emt 0:00:22]} exf4 {[%emt 0:00:00]} 32. gxf4 {[%emt 0:00:07]} Re8 {[%emt 0:00:00]} 33. f5 {[%emt 0:00:57]} Nf8 {[%emt 0:00:00]} 34. Nd4 {[%emt 0:01:25]} Nd7 {[%emt 0:02:10]} 35. Nc4 {[%emt 0:03:57]} 1/2-1/2

[Event "FIDE World Senior-50 CC 2023"]
[Site "Terrasini"]
[Date "2023.10.26"]
[Round "2.4"]
[White "Morovic Fernandez, Ivan"]
[Black "Boulard, Eric"]
[Result "1-0"]
[ECO "B73"]
[WhiteElo "2488"]
[BlackElo "2181"]
[Annotator "RC"]
[PlyCount "83"]
[EventDate "2023.10.22"]
[EventType "swiss"]
[EventCountry "ITA"]
[SourceTitle "playchess.com"]
[Source "ChessBase"]
[SourceQuality "1"]
[TimeControl "40/5400+30:1800+30"]

1. e4 {[%emt 0:00:10]} c5 {[%emt 0:00:28]} 2. Nf3 {[%emt 0:00:06]} d6 {[%emt 0:00:29]} 3. d4 {[%emt 0:00:16]} cxd4 {[%emt 0:00:12]} 4. Nxd4 {[%emt 0:00:09]} Nf6 {[%emt 0:00:19]} 5. Nc3 {[%emt 0:00:07]} g6 {[%emt 0:00:15]} 6. Be2 {[%emt 0:07:03]} Bg7 {[%emt 0:03:08]} 7. O-O {[%emt 0:00:10]} O-O {[%emt 0:00:26]} 8. Be3 {[%emt 0:01:26]} Nc6 {[%emt 0:00:42]} 9. Qd2 {[%emt 0:03:47]} Ng4 {[%emt 0:16:06]} 10. Bxg4 {[%emt 0:01:18]} Bxg4 {[%emt 0:02:09]} 11. Nd5 {[%emt 0:02:45]} Rc8 {[%emt 0:13:25]} 12. c4 {[%emt 0:05:31]} Nxd4 {[%emt 0:07:04]} 13. Bxd4 {[%emt 0:00:18]} Rxc4 {[%emt 0:00:09]} 14. Bxg7 {[%emt 0:04:13]} Kxg7 {[%emt 0:03:28]} 15. Ne3 {[%emt 0:02:21]} Qc8 {[%emt 0:07:53]} 16. Nxc4 {[%emt 0:04:41]} Qxc4 {[%emt 0:00:07]} 17. Rfc1 {[%emt 0:01:13]} Qa6 {[%emt 0:01:12]} 18. Qg5 {[%emt 0:02:33]} Be6 {[%emt 0:04:07]} 19. Qxe7 {[%emt 0:00:58]} Qb6 {[%emt 0:08:40]} 20. b3 {[%emt 0:03:10]} a6 {[%emt 0:08:55]} 21. Qc7 {[%emt 0:06:31]} Qb4 {[%emt 0:04:52]} 22. Qc3+ {[%emt 0:04:00]} Qxc3 {[%emt 0:00:06]} 23. Rxc3 {[%emt 0:00:02]} d5 {[%emt 0:00:41]} 24. exd5 {[%emt 0:13:32]} Bxd5 {[%emt 0:00:09]} 25. f3 {[%emt 0:00:21]} Bc6 {[%emt 0:05:16]} 26. Rd1 {[%emt 0:00:41]} Re8 {[%emt 0:00:11]} 27. Kf2 {[%emt 0:00:22]} Re5 {[%emt 0:01:24]} 28. Rd6 {[%emt 0:04:48]} Bb5 {[%emt 0:00:45]} 29. Rc2 {[%emt 0:00:34]} a5 {[%emt 0:03:12]} 30. g4 {[%emt 0:06:40]} g5 {[%emt 0:00:31]} 31. a4 {[%emt 0:05:29]} Bc6 {[%emt 0:01:13]} 32. Rc3 {[%emt 0:07:32]} h6 {[%emt 0:03:11]} 33. h3 {[%emt 0:01:39]} Kh7 {[%emt 0:01:35]} 34. Rf6 {[%emt 0:01:06]} Rd5 {[%emt 0:04:39]} 35. Rxf7+ {[%emt 0:00:35]} Kg6 {[%emt 0:00:01]} 36. Re7 {[%emt 0:00:10]} Rd1 {[%emt 0:00:18]} 37. Rce3 {[%emt 0:02:56]} Bd5 {[%emt 0:00:33]} 38. Rd7 {[%emt 0:02:44]} Bxb3 {[%emt 0:00:28]} 39. Rxb7 {[%emt 0:04:39]} Ba2 {[%emt 0:00:43]} 40. Rb6+ {[%emt 0:00:44]} Kf7 {[%emt 0:00:26]} 41. Rxh6 {[%emt 0:30:50]} Bc4 {[%emt 0:30:30]} 42. Re5 {[%emt 0:02:17]} 1-0

[Event "FIDE World Senior-50 CC 2023"]
[Site "Terrasini"]
[Date "2023.10.26"]
[Round "2.5"]
[White "Bischoff, Klaus"]
[Black "Herrera Ortiz, Miguel"]
[Result "1-0"]
[ECO "A84"]
[WhiteElo "2473"]
[BlackElo "2177"]
[Annotator "RC"]
[PlyCount "87"]
[EventDate "2023.10.22"]
[EventType "swiss"]
[EventCountry "ITA"]
[SourceTitle "playchess.com"]
[Source "ChessBase"]
[SourceQuality "1"]
[TimeControl "40/5400+30:1800+30"]

1. d4 {[%emt 0:00:13]} e6 {[%emt 0:00:24]} 2. c4 {[%emt 0:00:23]} f5 {[%emt 0:00:17]} 3. Nf3 {[%emt 0:01:54]} Nf6 {[%emt 0:00:16]} 4. e3 {[%emt 0:01:10]} b6 {[%emt 0:00:50]} 5. Be2 {[%emt 0:01:08]} Bb7 {[%emt 0:01:37]} 6. O-O {[%emt 0:00:40]} Be7 {[%emt 0:01:42]} 7. Nc3 {[%emt 0:00:44]} Ne4 {[%emt 0:05:12]} 8. Nxe4 {[%emt 0:04:24]} fxe4 {[%emt 0:10:02]} 9. Nd2 {[%emt 0:02:33]} O-O {[%emt 0:06:57]} 10. f3 {[%emt 0:02:51]} exf3 {[%emt 0:01:03]} 11. Nxf3 {[%emt 0:01:45]} Bf6 {[%emt 0:07:21]} 12. Bd2 {[%emt 0:03:20]} Nc6 {[%emt 1:00:49]} 13. Qc2 {[%emt 0:01:29]} Qe8 {[%emt 0:00:00]} 14. Bd3 {[%emt 0:06:39]} Qh5 {[%emt 0:00:00]} 15. Bc3 {[%emt 0:03:38]} d6 {[%emt 0:00:00]} 16. Rae1 {[%emt 0:02:19]} Ne7 {[%emt 0:00:00]} 17. Be4 {[%emt 0:06:44]} d5 {[%emt 0:00:00]} 18. cxd5 {[%emt 0:01:08]} exd5 {[%emt 0:00:00]} 19. Bd3 {[%emt 0:00:37]} a5 {[%emt 0:00:00]} 20. Re2 {[%emt 0:02:47]} Ba6 {[%emt 0:00:00]} 21. Bxa6 {[%emt 0:01:27]} Rxa6 {[%emt 0:00:00]} 22. Be1 {[%emt 0:00:23]} Ra7 {[%emt 0:00:00]} 23. Bg3 {[%emt 0:02:17]} Rc8 {[%emt 0:00:00]} 24. e4 {[%emt 0:04:22]} dxe4 {[%emt 0:00:00]} 25. Rxe4 {[%emt 0:01:12]} Kh8 {[%emt 0:00:00]} 26. Ne5 {[%emt 0:02:35]} Bxe5 {[%emt 0:01:31]} 27. Rxe5 {[%emt 0:01:31]} Qg6 {[%emt 0:00:40]} 28. Qc4 {[%emt 0:00:36]} Ng8 {[%emt 0:02:04]} 29. Re6 {[%emt 0:00:46]} Qg4 {[%emt 0:00:09]} 30. Be5 {[%emt 0:00:55]} c5 {[%emt 0:01:19]} 31. h3 {[%emt 0:00:43]} b5 {[%emt 0:00:36]} 32. Qd5 {[%emt 0:01:27]} Qg5 {[%emt 0:01:04]} 33. dxc5 {[%emt 0:03:14]} Rd8 {[%emt 0:00:24]} 34. Rd6 {[%emt 0:00:52]} Re8 {[%emt 0:00:33]} 35. Bd4 {[%emt 0:02:31]} Qxd5 {[%emt 0:00:34]} 36. Rxd5 {[%emt 0:00:02]} Rc7 {[%emt 0:00:16]} 37. a3 {[%emt 0:01:46]} h6 {[%emt 0:00:19]} 38. Rd6 {[%emt 0:01:22]} Kh7 {[%emt 0:00:23]} 39. Rb6 {[%emt 0:00:39]} Re4 {[%emt 0:00:19]} 40. Bc3 {[%emt 0:01:01]} Rxc5 {[%emt 0:00:52]} 41. Rb7 {[%emt 0:32:02]} Ne7 {[%emt 0:32:45]} 42. Rf7 {[%emt 0:02:05]} b4 {[%emt 0:00:00]} 43. Rxg7+ {[%emt 0:00:00]} Kh8 {[%emt 0:00:00]} 44. Rgxe7+ {[%emt 0:00:00]} 1-0